[Event "*** SCC Grand Prix: Titled Tuesday Blitz"]
[Site "Chess.com"]
[Date "2020.08.04"]
[Round "5"]
[White "killer311"]
[Black "Fighter008"]
[Result "0-1"]
[WhiteElo "2421"]
[BlackElo "2615"]
[TimeControl "180+1"]
[EndTime "14:41:08 PDT"]
[Termination "Fighter008 won by resignation"]

1. d4 {[%clk 0:03:00.9]} 1... c5 {[%clk 0:02:58.7]} 2. d5 {[%clk 0:03:00.5]}
2... d6 {[%clk 0:02:54.4]} 3. c4 {[%clk 0:03:01.4]} 3... e5 {[%clk 0:02:53.5]}
4. Nc3 {[%clk 0:03:01.2]} 4... g6 {[%clk 0:02:53]} 5. g3 {[%clk 0:03:01.6]} 5...
Bg7 {[%clk 0:02:52.8]} 6. Bg2 {[%clk 0:03:02.5]} 6... f5 {[%clk 0:02:53.1]} 7.
e4 {[%clk 0:03:01.3]} 7... Nf6 {[%clk 0:02:49.2]} 8. exf5 {[%clk 0:02:57]} 8...
gxf5 {[%clk 0:02:50.1]} 9. Bg5 {[%clk 0:02:54.3]} 9... O-O {[%clk 0:02:48.7]}
10. h4 {[%clk 0:02:50.7]} 10... h6 {[%clk 0:02:46.9]} 11. Bd2 {[%clk 0:02:45.8]}
11... Nbd7 {[%clk 0:02:39.5]} 12. Qc2 {[%clk 0:02:40.1]} 12... e4 {[%clk
0:02:37.4]} 13. Nh3 {[%clk 0:02:36.2]} 13... Ne5 {[%clk 0:02:35.3]} 14. Nf4
{[%clk 0:02:35]} 14... Nxc4 {[%clk 0:02:35.2]} 15. O-O {[%clk 0:02:26.1]} 15...
Ne5 {[%clk 0:02:33.6]} 16. Rfe1 {[%clk 0:02:01.7]} 16... Rb8 {[%clk 0:02:30.5]}
17. a4 {[%clk 0:02:01.1]} 17... Qe7 {[%clk 0:02:24.9]} 18. Nd1 {[%clk
0:01:55.4]} 18... Qf7 {[%clk 0:02:14.8]} 19. Ne3 {[%clk 0:01:54.1]} 19... b6
{[%clk 0:02:06.7]} 20. Bc3 {[%clk 0:01:53.5]} 20... a6 {[%clk 0:01:56.5]} 21.
Red1 {[%clk 0:01:46.3]} 21... b5 {[%clk 0:01:54.5]} 22. axb5 {[%clk 0:01:45]}
22... axb5 {[%clk 0:01:55.4]} 23. b3 {[%clk 0:01:37]} 23... Ng6 {[%clk
0:01:50.8]} 24. Nxg6 {[%clk 0:01:11.2]} 24... Qxg6 {[%clk 0:01:51.7]} 25. Ra7
{[%clk 0:01:11.7]} 25... Bb7 {[%clk 0:01:39]} 26. Bh3 {[%clk 0:01:09.6]} 26...
Nh5 {[%clk 0:01:30.9]} 27. Ng2 {[%clk 0:00:59.5]} 27... f4 {[%clk 0:01:14.6]}
28. Bxg7 {[%clk 0:00:56.3]} 28... Nxg7 {[%clk 0:01:14.1]} 29. gxf4 {[%clk
0:00:44.5]} 29... Rxf4 {[%clk 0:01:07.1]} 30. Kh2 {[%clk 0:00:44.1]} 30... Rf3
{[%clk 0:01:02.6]} 31. Rg1 {[%clk 0:00:40.6]} 31... Qf6 {[%clk 0:01:02.5]} 32.
Qxe4 {[%clk 0:00:36]} 32... Re8 {[%clk 0:01:01.5]} 33. Qg4 {[%clk 0:00:32.5]}
33... Bxd5 {[%clk 0:00:53.5]} 34. Qxg7+ {[%clk 0:00:17.9]} 34... Qxg7 {[%clk
0:00:51.7]} 35. Rxg7+ {[%clk 0:00:18.8]} 35... Kxg7 {[%clk 0:00:52.2]} 36. Nf4+
{[%clk 0:00:18.7]} 36... Kf7 {[%clk 0:00:46.8]} 37. Nxd5 {[%clk 0:00:18.8]}
37... Rxf2+ {[%clk 0:00:47.3]} 38. Kh1 {[%clk 0:00:18.9]} 38... Ree2 {[%clk
0:00:44.4]} 39. Bg2 {[%clk 0:00:17.8]} 39... Rb2 {[%clk 0:00:38.7]} 40. Nc7
{[%clk 0:00:17.4]} 40... b4 {[%clk 0:00:33.7]} 41. Nb5 {[%clk 0:00:17.3]} 41...
Ke7 {[%clk 0:00:29.1]} 42. Re1+ {[%clk 0:00:16.6]} 42... Rfe2 {[%clk 0:00:29.2]}
43. Rxe2+ {[%clk 0:00:14.1]} 43... Rxe2 {[%clk 0:00:28.6]} 44. Bd5 {[%clk
0:00:12.5]} 44... Rd2 {[%clk 0:00:21.3]} 45. Bc4 {[%clk 0:00:12.5]} 45... Kf6
{[%clk 0:00:21.2]} 46. Nc7 {[%clk 0:00:12.2]} 46... Ke5 {[%clk 0:00:21.1]} 47.
Nd5 {[%clk 0:00:12.3]} 47... Rxd5 {[%clk 0:00:20.4]} 48. Bxd5 {[%clk 0:00:13.2]}
48... Kxd5 {[%clk 0:00:21.3]} 49. Kg2 {[%clk 0:00:14.1]} 49... c4 {[%clk
0:00:21.7]} 50. bxc4+ {[%clk 0:00:15]} 50... Kxc4 {[%clk 0:00:22.6]} 51. Kf3
{[%clk 0:00:15.7]} 51... b3 {[%clk 0:00:23.1]} 0-1

[Event "*** SCC Grand Prix: Titled Tuesday Blitz"]
[Site "Chess.com"]
[Date "2020.08.04"]
[Round "5"]
[White "XDPS"]
[Black "GM_dmitrij"]
[Result "1-0"]
[WhiteElo "2689"]
[BlackElo "2863"]
[TimeControl "180+1"]
[EndTime "14:41:12 PDT"]
[Termination "XDPS won by resignation"]

1. e4 {[%clk 0:03:00.9]} 1... c5 {[%clk 0:02:56.4]} 2. Nf3 {[%clk 0:03:01]} 2...
d6 {[%clk 0:02:56.3]} 3. d4 {[%clk 0:03:00.9]} 3... cxd4 {[%clk 0:02:57.2]} 4.
Nxd4 {[%clk 0:03:01.6]} 4... Nf6 {[%clk 0:02:58.1]} 5. Nc3 {[%clk 0:03:02.1]}
5... Nc6 {[%clk 0:02:58.5]} 6. Be2 {[%clk 0:03:02.3]} 6... e5 {[%clk 0:02:58.5]}
7. Nf3 {[%clk 0:03:02.1]} 7... h6 {[%clk 0:02:58.1]} 8. O-O {[%clk 0:03:00.4]}
8... Be7 {[%clk 0:02:58.4]} 9. h3 {[%clk 0:03:00.5]} 9... O-O {[%clk 0:02:58.3]}
10. Re1 {[%clk 0:03:01.1]} 10... a6 {[%clk 0:02:50.7]} 11. Bf1 {[%clk
0:03:00.4]} 11... Qc7 {[%clk 0:02:51]} 12. Nd5 {[%clk 0:02:56]} 12... Nxd5
{[%clk 0:02:50.5]} 13. exd5 {[%clk 0:02:56.9]} 13... Nb4 {[%clk 0:02:45.5]} 14.
c3 {[%clk 0:02:46.2]} 14... Nxd5 {[%clk 0:02:42.2]} 15. Qxd5 {[%clk 0:02:45.6]}
15... Be6 {[%clk 0:02:43.1]} 16. Qd1 {[%clk 0:02:44.1]} 16... f6 {[%clk
0:02:38.6]} 17. Nd4 {[%clk 0:02:29.3]} 17... Bf7 {[%clk 0:02:26]} 18. Nf5 {[%clk
0:02:29.1]} 18... Kh8 {[%clk 0:02:25.8]} 19. Qg4 {[%clk 0:02:25.1]} 19... Rg8
{[%clk 0:02:25.5]} 20. Nxe7 {[%clk 0:02:12.6]} 20... Qxe7 {[%clk 0:02:24.7]} 21.
f4 {[%clk 0:02:09.9]} 21... Be6 {[%clk 0:02:16.2]} 22. Qg3 {[%clk 0:02:02.5]}
22... Qf7 {[%clk 0:02:11.2]} 23. b3 {[%clk 0:01:58.3]} 23... g5 {[%clk 0:02:00]}
24. fxe5 {[%clk 0:01:57.1]} 24... dxe5 {[%clk 0:01:58.9]} 25. c4 {[%clk
0:01:57.2]} 25... Rad8 {[%clk 0:01:57]} 26. Bb2 {[%clk 0:01:55.6]} 26... Bf5
{[%clk 0:01:55.1]} 27. Rad1 {[%clk 0:01:46.9]} 27... Kh7 {[%clk 0:01:52]} 28.
Qf3 {[%clk 0:01:37.8]} 28... Bg6 {[%clk 0:01:46.7]} 29. Bd3 {[%clk 0:01:06.6]}
29... Rge8 {[%clk 0:01:15.9]} 30. Bxg6+ {[%clk 0:01:03.7]} 30... Kxg6 {[%clk
0:01:16.1]} 31. Rf1 {[%clk 0:00:49]} 31... Rxd1 {[%clk 0:01:14.7]} 32. Qf5+
{[%clk 0:00:46.2]} 32... Kg7 {[%clk 0:01:09.5]} 33. Rxd1 {[%clk 0:00:46.7]}
33... Re7 {[%clk 0:01:10.4]} 34. Rd6 {[%clk 0:00:45.8]} 34... h5 {[%clk
0:01:00.2]} 35. Bc3 {[%clk 0:00:38.2]} 35... Rc7 {[%clk 0:00:56.5]} 36. Ba5
{[%clk 0:00:34.5]} 36... b6 {[%clk 0:00:50.1]} 37. Bxb6 {[%clk 0:00:31.7]} 37...
Rb7 {[%clk 0:00:50.5]} 38. Bd8 {[%clk 0:00:26.8]} 38... Qg6 {[%clk 0:00:48]} 39.
Bxf6+ {[%clk 0:00:26.2]} 39... Kf7 {[%clk 0:00:47.3]} 40. Qxg6+ {[%clk
0:00:24.8]} 40... Kxg6 {[%clk 0:00:48.2]} 41. Bxe5+ {[%clk 0:00:25.5]} 41... Kf5
{[%clk 0:00:48.7]} 42. Bd4 {[%clk 0:00:25.8]} 42... a5 {[%clk 0:00:48.6]} 43.
Rd5+ {[%clk 0:00:22.9]} 43... Ke4 {[%clk 0:00:48.9]} 44. Bf2 {[%clk 0:00:23.1]}
44... a4 {[%clk 0:00:47.1]} 45. Rxg5 {[%clk 0:00:22]} 45... axb3 {[%clk
0:00:46.6]} 46. axb3 {[%clk 0:00:22.9]} 46... Rxb3 {[%clk 0:00:47.1]} 47. Rxh5
{[%clk 0:00:23.2]} 47... Rc3 {[%clk 0:00:47.3]} 48. c5 {[%clk 0:00:22.6]} 48...
Rc1+ {[%clk 0:00:47.6]} 49. Kh2 {[%clk 0:00:22.8]} 49... Rc2 {[%clk 0:00:48.5]}
50. Bg3 {[%clk 0:00:20.3]} 50... Rc3 {[%clk 0:00:48.3]} 51. Bd6 {[%clk
0:00:20.2]} 51... Rc2 {[%clk 0:00:47.5]} 52. Rh4+ {[%clk 0:00:20.5]} 52... Kf5
{[%clk 0:00:47.2]} 53. Rf4+ {[%clk 0:00:20.6]} 53... Kg5 {[%clk 0:00:47.5]} 54.
Rf3 {[%clk 0:00:21]} 54... Rc4 {[%clk 0:00:47.1]} 55. Rg3+ {[%clk 0:00:20.9]}
55... Kh5 {[%clk 0:00:47.1]} 56. Rf3 {[%clk 0:00:20.5]} 56... Rc2 {[%clk
0:00:47.1]} 57. Be7 {[%clk 0:00:20.5]} 57... Rc4 {[%clk 0:00:46.9]} 58. Rd3
{[%clk 0:00:20.3]} 58... Kg6 {[%clk 0:00:46.9]} 59. Bd6 {[%clk 0:00:20]} 59...
Kf5 {[%clk 0:00:47.1]} 60. Rd1 {[%clk 0:00:18]} 60... Rc2 {[%clk 0:00:46.7]} 61.
Bf8 {[%clk 0:00:16.6]} 61... Kg6 {[%clk 0:00:46.2]} 62. Rd8 {[%clk 0:00:16.9]}
62... Kf7 {[%clk 0:00:45.8]} 63. Rc8 {[%clk 0:00:17]} 63... Ke6 {[%clk
0:00:46.1]} 64. c6 {[%clk 0:00:17.1]} 64... Rf2 {[%clk 0:00:44.6]} 65. Bh6
{[%clk 0:00:16.6]} 65... Rf7 {[%clk 0:00:41.5]} 66. c7 {[%clk 0:00:14.8]} 66...
Kd7 {[%clk 0:00:41.9]} 67. Rg8 {[%clk 0:00:15.3]} 67... Kxc7 {[%clk 0:00:41.5]}
68. Rg7 {[%clk 0:00:15.9]} 68... Rxg7 {[%clk 0:00:42.1]} 69. Bxg7 {[%clk
0:00:16.8]} 69... Kd7 {[%clk 0:00:43]} 70. Bb2 {[%clk 0:00:17.2]} 70... Ke6
{[%clk 0:00:43.9]} 71. g4 {[%clk 0:00:17.8]} 71... Kd5 {[%clk 0:00:43.8]} 72.
Kg3 {[%clk 0:00:18.7]} 72... Ke6 {[%clk 0:00:44.7]} 73. h4 {[%clk 0:00:19.6]}
73... Kf7 {[%clk 0:00:45.5]} 74. h5 {[%clk 0:00:20.2]} 74... Kf8 {[%clk
0:00:46.4]} 75. Kh4 {[%clk 0:00:20.9]} 75... Kg8 {[%clk 0:00:45]} 76. g5 {[%clk
0:00:21.8]} 76... Kh7 {[%clk 0:00:45.8]} 77. g6+ {[%clk 0:00:21]} 77... Kg8
{[%clk 0:00:46.7]} 78. Kg5 {[%clk 0:00:21.5]} 1-0

[Event "*** SCC Grand Prix: Titled Tuesday Blitz"]
[Site "Chess.com"]
[Date "2020.08.04"]
[Round "5"]
[White "rududuyk"]
[Black "Hangar-18"]
[Result "0-1"]
[WhiteElo "2067"]
[BlackElo "2352"]
[TimeControl "180+1"]
[EndTime "14:41:20 PDT"]
[Termination "Hangar-18 won on time"]

1. e4 {[%clk 0:03:00.9]} 1... c5 {[%clk 0:03:00.1]} 2. Nc3 {[%clk 0:03:00.5]}
2... e6 {[%clk 0:03:00.4]} 3. f4 {[%clk 0:02:56.4]} 3... a6 {[%clk 0:02:59.7]}
4. Nf3 {[%clk 0:02:55.8]} 4... b5 {[%clk 0:02:59.7]} 5. a4 {[%clk 0:02:52.5]}
5... b4 {[%clk 0:02:59.2]} 6. Ne2 {[%clk 0:02:50.7]} 6... Bb7 {[%clk 0:02:57.1]}
7. d3 {[%clk 0:02:46.1]} 7... d5 {[%clk 0:02:56.9]} 8. e5 {[%clk 0:02:41]} 8...
h5 {[%clk 0:02:57.3]} 9. g3 {[%clk 0:02:34.9]} 9... Nh6 {[%clk 0:02:56.5]} 10.
Bg2 {[%clk 0:02:33.1]} 10... Nf5 {[%clk 0:02:56.2]} 11. O-O {[%clk 0:02:25.6]}
11... a5 {[%clk 0:02:54.4]} 12. h3 {[%clk 0:02:23.8]} 12... Be7 {[%clk
0:02:53.7]} 13. Kh2 {[%clk 0:02:22]} 13... Nd7 {[%clk 0:02:37.6]} 14. c3 {[%clk
0:02:19]} 14... Ba6 {[%clk 0:02:24.7]} 15. d4 {[%clk 0:02:11.9]} 15... Qb6
{[%clk 0:02:18.4]} 16. Re1 {[%clk 0:01:40.6]} 16... Rc8 {[%clk 0:01:57.4]} 17.
dxc5 {[%clk 0:01:22.4]} 17... Nxc5 {[%clk 0:01:56.3]} 18. Ned4 {[%clk
0:01:20.1]} 18... Nd3 {[%clk 0:01:52]} 19. Nxf5 {[%clk 0:00:45.8]} 19... Nxe1
{[%clk 0:01:49.1]} 20. Nxg7+ {[%clk 0:00:34.6]} 20... Kf8 {[%clk 0:01:49]} 21.
Nxe6+ {[%clk 0:00:30.9]} 21... fxe6 {[%clk 0:01:40.8]} 22. Qxe1 {[%clk
0:00:30.8]} 22... bxc3 {[%clk 0:01:28.9]} 23. bxc3 {[%clk 0:00:28.1]} 23... Bd3
{[%clk 0:01:18.4]} 24. Nd4 {[%clk 0:00:23.4]} 24... Bc5 {[%clk 0:01:03]} 25. Be3
{[%clk 0:00:18.5]} 25... Kf7 {[%clk 0:00:51.8]} 26. Qd2 {[%clk 0:00:17.7]} 26...
Be4 {[%clk 0:00:44.2]} 27. Bxe4 {[%clk 0:00:16.1]} 27... dxe4 {[%clk 0:00:45.1]}
28. Rf1 {[%clk 0:00:15.3]} 28... Bxd4 {[%clk 0:00:25.5]} 29. Bxd4 {[%clk
0:00:14.1]} 29... Qc6 {[%clk 0:00:13.2]} 30. f5 {[%clk 0:00:12.1]} 30... Rcg8
{[%clk 0:00:13.7]} 31. fxe6+ {[%clk 0:00:11.1]} 31... Ke7 {[%clk 0:00:14.3]} 32.
Qf4 {[%clk 0:00:09.9]} 32... Qxe6 {[%clk 0:00:10.6]} 33. Qxe4 {[%clk 0:00:07.7]}
33... Rc8 {[%clk 0:00:03.3]} 34. Qb7+ {[%clk 0:00:07.2]} 34... Ke8 {[%clk
0:00:01.8]} 35. Qb5+ {[%clk 0:00:06.1]} 35... Qd7 {[%clk 0:00:02.2]} 36. Qxa5
{[%clk 0:00:05.5]} 36... Rf8 {[%clk 0:00:01.4]} 37. Rxf8+ {[%clk 0:00:04.2]}
37... Kxf8 {[%clk 0:00:02.3]} 38. Qb4+ {[%clk 0:00:04.2]} 38... Ke8 {[%clk
0:00:02.6]} 39. a5 {[%clk 0:00:03.6]} 39... Qd5 {[%clk 0:00:03.1]} 40. Qa4+
{[%clk 0:00:03]} 40... Qc6 {[%clk 0:00:03]} 41. Qxc6+ {[%clk 0:00:02.9]} 41...
Rxc6 {[%clk 0:00:03.9]} 42. Kg2 {[%clk 0:00:02.6]} 42... Kd7 {[%clk 0:00:03.3]}
43. Kf3 {[%clk 0:00:02]} 43... Ke6 {[%clk 0:00:04.2]} 44. Kf4 {[%clk 0:00:02.3]}
44... Rc4 {[%clk 0:00:03.8]} 45. Kg5 {[%clk 0:00:02.6]} 45... Ra4 {[%clk
0:00:03.7]} 46. Kxh5 {[%clk 0:00:02.9]} 46... Rxa5 {[%clk 0:00:04.5]} 47. g4
{[%clk 0:00:03.3]} 47... Ra2 {[%clk 0:00:03.9]} 48. g5 {[%clk 0:00:03.8]} 48...
Rh2 {[%clk 0:00:02.8]} 49. h4 {[%clk 0:00:04.1]} 49... Kf5 {[%clk 0:00:03]} 50.
c4 {[%clk 0:00:02.9]} 50... Rh1 {[%clk 0:00:02.9]} 51. c5 {[%clk 0:00:02.6]}
51... Rc1 {[%clk 0:00:03]} 52. Be3 {[%clk 0:00:01.9]} 52... Rc3 {[%clk
0:00:02.3]} 53. Bf2 {[%clk 0:00:01]} 53... Rc4 {[%clk 0:00:02.7]} 54. g6 {[%clk
0:00:01.1]} 54... Rg4 {[%clk 0:00:02.7]} 0-1

[Event "*** SCC Grand Prix: Titled Tuesday Blitz"]
[Site "Chess.com"]
[Date "2020.08.04"]
[Round "5"]
[White "Bastiandash"]
[Black "gisela_roque"]
[Result "1-0"]
[WhiteElo "2310"]
[BlackElo "1853"]
[TimeControl "180+1"]
[EndTime "14:41:26 PDT"]
[Termination "Bastiandash won on time"]

1. e4 {[%clk 0:03:00.9]} 1... e6 {[%clk 0:02:58.6]} 2. d4 {[%clk 0:03:00.3]}
2... d5 {[%clk 0:02:57.9]} 3. Bd3 {[%clk 0:02:56.1]} 3... dxe4 {[%clk
0:02:55.3]} 4. Bxe4 {[%clk 0:02:57]} 4... Nf6 {[%clk 0:02:54.7]} 5. Bf3 {[%clk
0:02:57.2]} 5... c5 {[%clk 0:02:54.1]} 6. Ne2 {[%clk 0:02:55.3]} 6... Nc6 {[%clk
0:02:53.5]} 7. Be3 {[%clk 0:02:54.1]} 7... cxd4 {[%clk 0:02:37.6]} 8. Nxd4
{[%clk 0:02:32.9]} 8... Ne5 {[%clk 0:02:37.3]} 9. O-O {[%clk 0:02:22.4]} 9...
Nxf3+ {[%clk 0:02:19.9]} 10. Qxf3 {[%clk 0:02:18.1]} 10... Be7 {[%clk
0:02:18.6]} 11. Nc3 {[%clk 0:02:13.8]} 11... O-O {[%clk 0:02:17.9]} 12. Rad1
{[%clk 0:02:11.1]} 12... Bd7 {[%clk 0:01:58.9]} 13. Rfe1 {[%clk 0:02:02.8]}
13... Qc8 {[%clk 0:01:50.1]} 14. Rd2 {[%clk 0:01:45.1]} 14... a6 {[%clk
0:01:44.9]} 15. Bf4 {[%clk 0:01:38.2]} 15... Bc6 {[%clk 0:01:24.1]} 16. Nxc6
{[%clk 0:01:18.2]} 16... Qxc6 {[%clk 0:01:25]} 17. Qxc6 {[%clk 0:01:14.2]} 17...
bxc6 {[%clk 0:01:25.9]} 18. b3 {[%clk 0:01:13.5]} 18... Rfd8 {[%clk 0:01:22.2]}
19. Red1 {[%clk 0:01:11.8]} 19... Rxd2 {[%clk 0:01:13.5]} 20. Rxd2 {[%clk
0:01:10.5]} 20... Rd8 {[%clk 0:01:13]} 21. Kf1 {[%clk 0:01:07]} 21... Nd5 {[%clk
0:01:08.8]} 22. Ne2 {[%clk 0:00:54.9]} 22... Nxf4 {[%clk 0:01:06.6]} 23. Rxd8+
{[%clk 0:00:55.8]} 23... Bxd8 {[%clk 0:01:05.5]} 24. Nxf4 {[%clk 0:00:56.6]}
24... Kf8 {[%clk 0:00:58.6]} 25. Nd3 {[%clk 0:00:53]} 25... Be7 {[%clk
0:00:51.1]} 26. Ke2 {[%clk 0:00:48.7]} 26... Bd6 {[%clk 0:00:47.8]} 27. h3
{[%clk 0:00:44.6]} 27... Ke7 {[%clk 0:00:47.2]} 28. Ke3 {[%clk 0:00:44.6]} 28...
e5 {[%clk 0:00:38.3]} 29. f3 {[%clk 0:00:30.3]} 29... f5 {[%clk 0:00:34.3]} 30.
Nb2 {[%clk 0:00:29.8]} 30... Ke6 {[%clk 0:00:31.3]} 31. Nc4 {[%clk 0:00:29.3]}
31... Bc5+ {[%clk 0:00:31.1]} 32. Kd3 {[%clk 0:00:29.5]} 32... Kd5 {[%clk
0:00:26.8]} 33. c3 {[%clk 0:00:21]} 33... e4+ {[%clk 0:00:25.3]} 34. fxe4+
{[%clk 0:00:21.9]} 34... fxe4+ {[%clk 0:00:25.2]} 35. Ke2 {[%clk 0:00:22.3]}
35... Be7 {[%clk 0:00:17.1]} 36. Ne3+ {[%clk 0:00:17.4]} 36... Ke6 {[%clk
0:00:16.7]} 37. Nc4 {[%clk 0:00:13.7]} 37... Bf6 {[%clk 0:00:16.5]} 38. Nd2
{[%clk 0:00:11.1]} 38... Kf5 {[%clk 0:00:13.6]} 39. c4 {[%clk 0:00:09]} 39...
Bc3 {[%clk 0:00:11.9]} 40. Nf1 {[%clk 0:00:09.2]} 40... Kf4 {[%clk 0:00:11.3]}
41. Ne3 {[%clk 0:00:08.9]} 41... Kg3 {[%clk 0:00:09.1]} 42. Kf1 {[%clk
0:00:04.5]} 42... g6 {[%clk 0:00:08.7]} 43. Nd1 {[%clk 0:00:04]} 43... Bd4
{[%clk 0:00:08.3]} 44. a3 {[%clk 0:00:02.2]} 44... e3 {[%clk 0:00:08]} 45. b4
{[%clk 0:00:01.8]} 45... Kf4 {[%clk 0:00:06.6]} 46. Ke2 {[%clk 0:00:01.3]} 46...
Ke4 {[%clk 0:00:06.5]} 47. g3 {[%clk 0:00:01.9]} 47... Be5 {[%clk 0:00:05.5]}
48. g4 {[%clk 0:00:01.8]} 48... Bd6 {[%clk 0:00:05.6]} 49. Nxe3 {[%clk
0:00:02.2]} 49... a5 {[%clk 0:00:02.5]} 50. bxa5 {[%clk 0:00:02]} 50... Bxa3
{[%clk 0:00:02.1]} 51. Nc2 {[%clk 0:00:02.6]} 51... Bc5 {[%clk 0:00:02]} 52. Kd2
{[%clk 0:00:02.3]} 1-0

[Event "*** SCC Grand Prix: Titled Tuesday Blitz"]
[Site "Chess.com"]
[Date "2020.08.04"]
[Round "5"]
[White "dalmatinac101"]
[Black "1stSecond"]
[Result "0-1"]
[WhiteElo "2713"]
[BlackElo "2855"]
[TimeControl "180+1"]
[EndTime "14:41:39 PDT"]
[Termination "1stSecond won on time"]

1. e4 {[%clk 0:03:00.9]} 1... e5 {[%clk 0:02:56.2]} 2. Nf3 {[%clk 0:03:00.4]}
2... Nc6 {[%clk 0:02:56.8]} 3. Bb5 {[%clk 0:03:00.1]} 3... a6 {[%clk 0:02:57.1]}
4. Ba4 {[%clk 0:03:00.2]} 4... Nf6 {[%clk 0:02:57]} 5. O-O {[%clk 0:03:00.5]}
5... Be7 {[%clk 0:02:55.3]} 6. Re1 {[%clk 0:02:59.4]} 6... b5 {[%clk 0:02:55.9]}
7. Bb3 {[%clk 0:02:51.5]} 7... d6 {[%clk 0:02:56.4]} 8. c3 {[%clk 0:02:51]} 8...
O-O {[%clk 0:02:56.8]} 9. h3 {[%clk 0:02:51.3]} 9... Bb7 {[%clk 0:02:56.7]} 10.
d3 {[%clk 0:02:50.5]} 10... Na5 {[%clk 0:02:54.7]} 11. Bc2 {[%clk 0:02:49.9]}
11... c5 {[%clk 0:02:55.3]} 12. Nbd2 {[%clk 0:02:49.3]} 12... Re8 {[%clk
0:02:55.6]} 13. Nf1 {[%clk 0:02:47.5]} 13... Bf8 {[%clk 0:02:42.7]} 14. Bg5
{[%clk 0:02:45]} 14... h6 {[%clk 0:02:42]} 15. Bh4 {[%clk 0:02:44.9]} 15... Be7
{[%clk 0:02:28.4]} 16. Ne3 {[%clk 0:02:41.4]} 16... Nh7 {[%clk 0:02:15.1]} 17.
Bg3 {[%clk 0:02:34]} 17... Rc8 {[%clk 0:02:04]} 18. a4 {[%clk 0:02:23.5]} 18...
b4 {[%clk 0:02:00.8]} 19. cxb4 {[%clk 0:02:23.8]} 19... cxb4 {[%clk 0:02:01]}
20. d4 {[%clk 0:02:23.8]} 20... Bf6 {[%clk 0:01:38.3]} 21. Ng4 {[%clk
0:01:59.8]} 21... exd4 {[%clk 0:01:26.7]} 22. Rc1 {[%clk 0:01:48.4]} 22... b3
{[%clk 0:01:20.5]} 23. Bd3 {[%clk 0:01:40.2]} 23... Rxc1 {[%clk 0:01:20.6]} 24.
Qxc1 {[%clk 0:01:40.8]} 24... Ng5 {[%clk 0:01:17]} 25. Nxf6+ {[%clk 0:01:36.4]}
25... Qxf6 {[%clk 0:01:16]} 26. Nxg5 {[%clk 0:01:35.5]} 26... hxg5 {[%clk
0:01:16.5]} 27. Qc7 {[%clk 0:01:31.7]} 27... Qd8 {[%clk 0:01:01.4]} 28. Bxd6
{[%clk 0:01:23.6]} 28... Qxc7 {[%clk 0:00:57.5]} 29. Bxc7 {[%clk 0:01:24.5]}
29... Nc6 {[%clk 0:00:58.3]} 30. Bd6 {[%clk 0:01:12.1]} 30... Ne5 {[%clk
0:00:48.3]} 31. Bxe5 {[%clk 0:00:56.9]} 31... Rxe5 {[%clk 0:00:49.2]} 32. Rc1
{[%clk 0:00:57.1]} 32... g6 {[%clk 0:00:35.9]} 33. f3 {[%clk 0:00:55.3]} 33...
Kg7 {[%clk 0:00:21.1]} 34. Rc7 {[%clk 0:00:53.5]} 34... Ba8 {[%clk 0:00:17]} 35.
Bxa6 {[%clk 0:00:40.7]} 35... Kh6 {[%clk 0:00:13.3]} 36. Rxf7 {[%clk 0:00:36]}
36... Rc5 {[%clk 0:00:13]} 37. Ra7 {[%clk 0:00:22]} 37... Bc6 {[%clk 0:00:12]}
38. Rc7 {[%clk 0:00:21.4]} 38... Rc2 {[%clk 0:00:07.7]} 39. Kh2 {[%clk
0:00:20.2]} 39... Bxa4 {[%clk 0:00:06.9]} 40. Rd7 {[%clk 0:00:19.2]} 40... Rxb2
{[%clk 0:00:06.6]} 41. Rxd4 {[%clk 0:00:18.7]} 41... Bc6 {[%clk 0:00:04.3]} 42.
Rb4 {[%clk 0:00:16]} 42... Bd7 {[%clk 0:00:03.3]} 43. Bc4 {[%clk 0:00:14.4]}
43... Rc2 {[%clk 0:00:02.2]} 44. Bxb3 {[%clk 0:00:12.4]} 44... Rb2 {[%clk
0:00:02.5]} 45. Rd4 {[%clk 0:00:12.1]} 45... Bb5 {[%clk 0:00:02.1]} 46. Bc4
{[%clk 0:00:03.4]} 46... Rb4 {[%clk 0:00:01.7]} 47. Bxb5 {[%clk 0:00:03.5]}
47... Rxd4 {[%clk 0:00:01.6]} 48. Bc6 {[%clk 0:00:03.4]} 48... Rd2 {[%clk
0:00:02.5]} 49. Kg3 {[%clk 0:00:03.1]} 49... Kh7 {[%clk 0:00:02.6]} 50. Bd5
{[%clk 0:00:04]} 50... Kg7 {[%clk 0:00:02.9]} 51. Be6 {[%clk 0:00:03.5]} 51...
Kf6 {[%clk 0:00:03.1]} 52. Bc4 {[%clk 0:00:03.2]} 52... Ke5 {[%clk 0:00:03.5]}
53. Bf1 {[%clk 0:00:03.3]} 53... Rc2 {[%clk 0:00:03.1]} 54. Kg4 {[%clk
0:00:03.5]} 54... Rf2 {[%clk 0:00:02.9]} 0-1